bitfinex/quotes_ETHUSD_20251130
["timestamp","ask_amount","ask_price","bid_price","bid_amount"]
[1764479888150,0.55068045,2991.0,2990.6,0.494]
[1764479888151,0.55068045,2991.0,2990.9,0.4996]
[1764479889182,0.55068045,2991.0,2990.5,0.001]
[1764479889183,0.72559411,2990.9,2990.5,0.001]
[1764479889376,0.03336685,2990.8,2990.5,0.001]
[1764479890251,0.03336685,2990.8,2990.7,0.4996]
[1764479890460,0.75896096,2990.9,2990.7,0.4996]
[1764479890957,0.03336685,2990.9,2990.8,0.4996]
[1764479891158,4.31643616,2990.9,2990.8,0.4996]
[1764479891451,0.72559411,2990.8,2990.5,0.001]
[1764479891656,0.24736685,2990.9,2990.6,0.494]
[1764479891861,0.97296096,2990.9,2990.8,0.4996]
[1764479892068,4.31643616,2990.9,2990.8,0.4996]
[1764479895071,0.97296096,2990.9,2990.8,0.4996]
[1764479895401,4.31643616,2990.9,2990.8,0.4996]
[1764479896202,4.28306931,2990.9,2990.8,0.4996]
[1764479896494,4.28306931,2990.9,2990.8,0.975]
[1764479898402,0.93959411,2990.9,2990.8,0.975]
[1764479899198,4.28306931,2990.9,2990.8,0.975]
[1764479899398,0.93959411,2990.9,2990.8,0.975]
[1764479899778,4.28306931,2990.9,2990.8,0.975]
[1764479900282,13.1396671,3006.9,2990.8,0.975]
[1764479900283,4.35405495,2992.2,2990.8,0.975]
[1764479900481,0.33568045,2991.4,2991.0,0.4818]
[1764479900780,0.33568045,2991.1,2990.5,0.001]
[1764479900998,0.33568045,2991.1,2990.5,0.4764]
[1764479901832,0.33568045,2991.1,2990.6,0.0334381]
[1764479902521,0.33568045,2991.1,2990.5,0.4764]
[1764479902522,3.34336342,2991.0,2990.7,0.4523]
[1764479902908,4.06895753,2991.0,2990.9,0.476]
[1764479903153,3.34194825,2992.3,2990.9,0.476]
[1764479903319,0.33568045,2991.2,2990.9,0.476]
[1764479903745,0.54968045,2991.2,2990.9,0.476]
[1764479904107,0.214,2991.2,2991.1,0.476]
[1764479904906,4.28273398,2991.2,2991.1,0.476]
[1764479905403,0.72559411,2991.1,2990.6,0.4523]
[1764479906205,0.72559411,2991.1,2991.0,0.4742]
[1764479907033,4.06884575,2991.1,2991.0,0.4742]
[1764479907751,4.28278291,2991.2,2991.0,0.9623]
[1764479908047,0.93959411,2991.2,2991.1,0.6584]
[1764479908250,0.214,2991.2,2991.1,1.1465]
[1764479908943,4.28273398,2991.2,2991.1,1.1465]
[1764479909386,0.72559411,2991.2,2991.1,0.6584]
[1764479909565,0.72559411,2991.2,2990.6,0.0334381]
[1764479909566,4.52913398,2991.2,2990.7,0.4881]
[1764479909764,4.52913398,2991.2,2990.8,0.03343587]
[1764479910185,4.06873398,2991.2,2991.1,0.4742]
[1764479910682,4.06873398,2991.2,2990.5,3.8330196]
[1764479910883,4.06873398,2991.2,2990.6,0.90484006]
[1764479911267,4.06873398,2991.2,2991.1,0.4742]
[1764479913996,4.52913398,2991.2,2990.7,0.4881]
[1764479914378,4.52913398,2991.2,2990.8,0.03343587]
[1764479914786,4.06873398,2991.2,2990.8,0.52153587]
[1764479915168,4.06873398,2991.2,2990.7,0.03343698]
[1764479915375,0.214,2991.4,2991.1,0.6481]
[1764479915576,3.34302811,2991.3,2991.1,0.4742]
[1764479915775,3.34302811,2991.3,2990.8,0.4881]
[1764479916526,3.32930872,2991.3,2990.8,0.4881]
[1764479918602,6.70570368,2991.3,2990.8,0.87128949]
[1764479918780,3.82170872,2991.3,2990.8,0.4881]
[1764479918985,3.82170872,2991.3,2990.9,0.03343475]
[1764479919287,3.32930872,2991.3,2990.9,0.03343475]
[1764479919478,3.32930872,2991.3,2990.9,0.52153475]
[1764479920101,3.32930872,2991.3,2990.7,0.03343698]
[1764479920102,6.67233683,2991.3,2990.7,0.03343698]
[1764479920398,7.16473683,2991.3,2990.7,0.42008206]
[1764479920598,6.67233683,2991.3,2990.7,0.90818206]
[1764479920773,3.34269287,2991.6,2991.2,0.6481]
[1764479920979,0.93959411,2991.5,2991.3,0.4742]
[1764479922408,4.28249353,2991.5,2991.3,0.4742]
[1764479922703,4.28249353,2991.5,2991.2,0.1739]
[1764479922879,7.6587598,2991.5,2990.9,0.4881]
[1764479923079,8.11779295,2991.5,2990.9,0.4881]
[1764479923279,0.72559411,2991.3,2990.9,0.4881]
[1764479924286,4.06851695,2991.4,2991.2,0.6481]
[1764479924498,4.06851695,2991.4,2991.3,0.4742]
[1764479924811,4.06851695,2991.4,2990.9,0.4881]
[1764479925182,4.06851695,2991.4,2990.9,0.87127704]
[1764479925385,4.06851695,2991.4,2991.0,0.4881]
[1764479926090,4.06851695,2991.4,2991.1,0.1739]
[1764479926421,7.41143979,2991.4,2991.0,0.4881]
[1764479926924,4.06851695,2991.4,2991.0,0.4881]
[1764479927618,7.90383979,2991.4,2990.8,0.4881]
[1764479927816,0.33568045,2991.3,2990.9,0.03343475]
[1764479928124,7.66826679,2991.4,2990.7,0.03343698]
[1764479928313,7.33258634,2991.4,2990.7,0.03343698]
[1764479928520,7.33258634,2991.4,2990.8,0.4881]
[1764479928702,7.33258634,2991.4,2990.9,0.03343475]
[1764479928904,10.67550918,2991.4,2990.9,0.03343475]
[1764479929101,10.67550918,2991.4,2991.0,0.4881]
[1764479930295,10.67550918,2991.4,2991.3,0.4742]
[1764479930296,0.72559411,2991.4,2991.3,0.4742]
[1764479930621,4.06851047,2991.4,2991.3,0.4742]
[1764479930926,0.72559411,2991.4,2991.3,0.4742]
[1764479931426,4.06851047,2991.4,2991.3,0.4742]
[1764479933621,0.72559411,2991.3,2990.6,3.3437798]
[1764479933794,0.72559411,2991.3,2990.8,0.4666]
[1764479934609,3.34313987,2991.2,2990.8,0.4666]
[1764479935992,4.06867419,2991.3,2990.8,0.4666]
[1764479938196,7.87165427,2991.3,2990.8,0.4666]
[1764479938424,0.4599,2991.2,2990.8,0.001]
[1764479939229,7.41175427,2991.3,2990.8,0.001]
[1764479939406,1.20489411,2990.9,2990.8,0.001]
[1764479939603,1.62437456,2990.9,2990.8,0.001]
[1764479939799,2.08427456,2990.9,2990.8,0.001]
[1764479940794,2.18346484,2990.9,2990.8,0.001]
[1764479941414,5.09206931,2990.9,2990.8,0.001]
[1764479941625,5.42774976,2990.9,2990.8,0.001]
[1764479941795,6.34020728,2990.9,2990.8,0.001]
[1764479942000,7.18058201,2990.9,2990.8,0.001]
[1764479942197,11.49604188,2990.9,2990.8,0.001]
[1764479942809,4.49435778,2990.6,2990.5,0.001]
[1764479943011,5.69093823,2990.6,2990.5,0.001]
[1764479943213,6.58643899,2990.6,2990.5,0.001]
[1764479943509,10.06428863,2990.6,2990.5,0.001]
[1764479944097,6.18171524,2990.6,2990.5,0.001]
[1764479944299,5.05298516,2990.6,2990.5,0.001]
[1764479944632,5.26598516,2990.6,2990.5,0.001]
[1764479945124,4.47040471,2990.6,2990.5,0.001]
[1764479945737,4.25740471,2990.6,2990.5,0.001]
[1764479945921,4.47040471,2990.6,2990.5,0.001]
[1764479946567,4.25740471,2990.6,2990.5,0.001]
[1764479946829,4.28240471,2990.6,2990.5,0.4578]
[1764479947219,0.93859411,2990.6,2990.5,0.9234]
[1764479947422,0.72559411,2990.6,2990.5,0.9234]
[1764479948300,0.72559411,2991.0,2990.5,0.9234]
[1764479948537,0.72559411,2990.9,2990.6,0.4990381]
[1764479948703,3.3430359,2991.3,2990.6,0.4990381]
[1764479948899,0.213,2991.2,2990.9,0.4568]
[1764479949141,0.93859411,2991.2,2990.7,0.38438896]
[1764479949317,0.93859411,2991.2,2991.1,0.4568]
[1764479949518,0.213,2991.2,2991.1,0.4568]
[1764479949836,3.34325164,2991.1,2990.8,0.4656]
[1764479950212,3.34325164,2991.1,2991.0,0.4568]
[1764479950709,4.28178129,2991.2,2991.0,0.4568]
[1764479950928,4.28178129,2991.2,2991.1,0.4568]
[1764479953831,4.06878129,2991.2,2991.1,0.4568]
[1764479954050,0.93859411,2991.2,2991.1,0.4568]
[1764479954722,0.002,2991.4,2991.1,0.4568]
[1764479954927,0.213,2991.3,2991.1,0.9224]
[1764479955228,0.93859411,2991.3,2991.0,0.1981]
[1764479955535,0.03536685,2991.4,2991.2,0.4568]
[1764479955739,0.03536685,2991.4,2991.0,0.6637]
[1764479955740,0.002,2991.4,2991.3,0.4568]
[1764479955915,0.215,2991.4,2991.3,0.4568]
[1764479956108,3.55791636,2991.4,2991.0,0.6637]
[1764479956313,3.55791636,2991.4,2991.1,0.4656]
[1764479956825,3.55791636,2991.4,2991.3,0.4568]
[1764479957030,0.94059411,2991.4,2991.3,0.4568]
[1764479957743,0.94059411,2991.4,2991.3,0.9224]
[1764479957943,0.72759411,2991.4,2991.3,0.4568]
[1764479958117,0.72759411,2991.4,2991.3,0.9224]
[1764479958515,0.002,2991.4,2991.3,0.9224]
[1764479961146,0.002,2991.4,2991.3,0.4568]
[1764479961526,0.002,2991.4,2991.3,0.9303]
[1764479964324,0.002,2991.4,2991.3,0.88415516]
[1764479964522,0.002,2991.4,2991.3,0.9345]
[1764479965846,0.002,2991.4,2991.3,0.4568]
[1764479966082,0.002,2991.4,2991.3,0.9345]
[1764479966283,0.002,2991.4,2991.3,0.4568]
[1764479966491,0.002,2991.4,2991.3,0.49023028]
[1764479966699,0.002,2991.4,2991.3,0.4568]
[1764479966991,0.002,2991.4,2991.3,0.49023028]
[1764479967198,0.002,2991.4,2991.3,1.39904521]
[1764479967387,0.002,2991.4,2991.3,4.31095839]
[1764479967583,0.002,2991.4,2991.3,0.9345]
[1764479968988,6.60480665,2992.0,2991.3,0.9345]
[1764479968989,0.002,2992.5,2992.0,0.4905]
[1764479969210,0.002,2992.5,2992.3,1.01218248]
[1764479969423,0.002,2992.5,2992.3,2.14145905]
[1764479969588,0.002,2992.5,2992.3,2.61915905]
[1764479971421,0.002,2992.5,2992.3,6.68666406]
[1764479973812,0.002,2992.5,2992.3,9.9491986]
[1764479974605,0.002,2992.5,2992.3,9.94511207]
[1764479976728,0.002,2992.5,2992.3,10.07898782]
[1764479980743,0.002,2992.5,2992.3,6.89356133]
[1764479980901,0.002,2992.5,2992.3,10.48449182]
[1764479987439,0.002,2992.5,2992.3,10.15200934]
[1764479987956,0.002,2992.5,2992.3,10.48449182]
[1764479991394,0.002,2992.5,2992.3,1.12927657]
[1764479991395,0.4873,2992.4,2992.3,1.12927657]
[1764479991622,0.4873,2992.4,2992.1,6.68425743]
[1764479992688,0.4748,2992.2,2992.1,3.34212315]
[1764479994462,0.9634,2992.2,2992.0,3.34319599]
[1764479994765,0.4906,2992.4,2992.0,6.68544197]
[1764479994965,0.4906,2992.4,2992.1,0.6898442]
[1764479995581,0.4906,2992.4,2992.2,3.34202259]
[1764479996095,0.4748,2992.3,2992.2,3.34202259]
[1764479996768,0.002,2992.4,2992.2,3.34202259]
[1764479996970,0.002,2992.4,2992.3,0.0334191]
[1764479997502,0.4768,2992.4,2992.3,3.37533]
[1764479998566,0.9654,2992.4,2992.3,3.37533]
[1764480000482,0.9654,2992.4,2992.3,3.3419109]
[1764480001588,0.9654,2992.4,2992.1,4.03192544]
[1764480001901,0.4748,2992.2,2992.1,4.03192544]
[1764480002403,0.9634,2992.2,2992.1,4.03192544]
[1764480004086,0.4748,2992.2,2992.1,4.03192544]
[1764480004620,0.4906,2992.4,2992.1,7.40748106]
[1764480004788,0.4906,2992.4,2992.1,7.37405972]
[1764480006122,0.4906,2992.4,2992.2,0.03342022]
[1764480006824,0.4906,2992.4,2992.3,3.3419109]
[1764480007188,0.9654,2992.4,2992.3,3.3419109]
[1764480007499,0.9654,2992.4,2992.3,3.37533]
[1764480009816,0.9654,2992.4,2992.3,3.27533]
[1764480013826,0.9654,2992.4,2992.3,0.0334191]
[1764480014026,0.9654,2992.4,2992.1,0.03342134]
[1764480014820,0.4768,2992.4,2992.2,3.34202259]
[1764480015004,0.4768,2992.4,2992.3,0.0334191]
[1764480016642,0.9654,2992.4,2992.3,0.0334191]
[1764480017035,0.9654,2992.4,2992.3,3.37533]
[1764480024134,0.4768,2992.4,2992.3,3.37533]
[1764480024326,0.4768,2992.4,2992.3,3.37633]
[1764480026152,0.002,2992.4,2992.3,4.52186526]
[1764480026355,0.002,2992.4,2992.3,5.00816526]
[1764480026725,0.002,2992.4,2992.3,5.22116526]
[1764480029177,0.002,2992.4,2992.3,5.35504773]
[1764480034785,0.002,2992.4,2992.3,5.32162863]
[1764480035361,0.002,2992.4,2992.3,4.83532863]
[1764480035562,0.9227,2992.4,2992.3,3.3429109]
[1764480037754,0.9227,2992.4,2992.3,0.001]
[1764480040882,0.4592,2992.4,2992.3,0.001]
[1764480041065,0.4592,2992.4,2992.3,0.0344191]
[1764480042465,0.4592,2992.4,2992.3,0.001]
[1764480042862,0.002,2992.4,2992.3,3.8166109]
[1764480043079,0.002,2992.4,2992.3,3.85003]
[1764480043383,0.002,2992.4,2992.3,5.47029241]
[1764480043856,0.002,2992.4,2992.3,5.60418519]
[1764480047585,0.002,2992.4,2992.3,5.11788519]
[1764480049490,0.002,2992.4,2992.3,5.60418519]
[1764480049689,0.002,2992.4,2992.3,5.11788519]
[1764480050670,0.002,2992.4,2992.3,5.60418519]
[1764480051760,0.002,2992.4,2992.3,5.11788519]
[1764480052892,0.486,2992.4,2992.3,4.61076609]
[1764480061097,0.9833,2992.4,2992.3,0.34689278]
[1764480061493,0.9833,2992.4,2992.3,0.13489278]
[1764480061899,0.9833,2992.4,2992.3,3.47680368]
[1764480064202,0.486,2992.4,2992.3,3.47680368]
[1764480064700,0.9833,2992.4,2992.3,3.47680368]
[1764480065200,3.82779922,2992.4,2992.3,0.001]
[1764480065602,4.66723764,2992.4,2992.3,0.001]
[1764480066401,5.39283175,2992.4,2992.3,0.001]
[1764480067093,5.89013175,2992.4,2992.3,0.001]
[1764480068924,6.29563575,2992.4,2992.3,0.001]
[1764480069125,6.76526502,2992.4,2992.3,0.001]
[1764480069330,6.42958457,2992.4,2992.3,0.001]
[1764480070782,6.02408057,2992.4,2992.3,0.001]
[1764480071500,1.70889411,2992.4,2992.3,0.001]
[1764480072082,1.13109811,2992.3,2992.0,0.001]
[1764480072394,1.13109811,2992.3,2991.8,0.001]
[1764480072395,0.74118445,2991.9,2991.8,0.001]
[1764480072595,3.482153,2991.9,2991.8,0.001]
[1764480072784,3.979453,2991.9,2991.8,0.001]
[1764480072981,7.23922761,2991.9,2991.8,0.001]
[1764480074483,10.5815853,2991.9,2991.8,0.001]
[1764480075093,10.71555521,2991.9,2991.8,0.001]
[1764480076306,10.31005121,2991.9,2991.8,0.001]
[1764480077715,10.40924149,2991.9,2991.8,0.001]
[1764480078617,7.14946688,2991.9,2991.8,0.001]
[1764480079807,5.35812171,2991.9,2991.8,0.001]
[1764480080006,5.4361518,2991.9,2991.8,0.001]
[1764480081109,4.7585518,2991.9,2991.8,0.001]
[1764480081316,0.03336685,2992.0,2991.8,0.4719]
[1764480081620,3.34192863,2992.3,2991.9,0.4709]
[1764480081820,0.72559411,2992.2,2991.9,0.4709]
[1764480082016,0.72559411,2992.2,2991.9,0.9638]
[1764480082495,3.55392863,2992.3,2991.9,1.39463015]
[1764480083113,0.212,2992.3,2991.9,1.39463015]
[1764480084326,0.6812,2992.3,2991.9,1.39463015]
[1764480084526,4.02312636,2992.3,2991.9,1.39463015]
[1764480086834,0.6812,2992.3,2991.9,1.39463015]
[1764480087517,3.34383014,2992.4,2992.0,0.47380198]
[1764480087829,0.002,2992.4,2992.0,0.94950198]
[1764480088134,0.4712,2992.4,2992.0,0.94950198]
[1764480088434,0.002,2992.4,2992.0,0.94950198]
[1764480088733,0.4712,2992.4,2992.0,0.94950198]
[1764480088933,3.81305583,2992.4,2992.0,0.94950198]
[1764480089133,0.002,2992.4,2992.1,0.42918534]
[1764480089331,0.002,2992.4,2992.1,0.62498534]
[1764480089535,0.4994,2992.2,2991.8,4.34780241]
[1764480089698,0.4994,2992.2,2991.8,4.3812271]
[1764480089902,3.34380899,2992.4,2991.9,0.4757]
[1764480090308,3.81300899,2992.4,2991.9,0.4757]
[1764480091131,3.81300899,2992.4,2991.9,3.81805331]
[1764480091316,3.81300899,2992.4,2991.9,4.63475383]
[1764480091833,3.81300899,2992.4,2991.9,1.29340052]
[1764480092041,0.4712,2992.4,2991.9,3.81904936]
[1764480092240,3.8130216,2992.4,2991.9,3.81904936]
[1764480093133,0.4712,2992.4,2991.9,3.81904936]
[1764480093443,3.34380895,2992.4,2991.9,0.4767]
[1764480093641,0.4692,2992.3,2991.9,0.4767]
[1764480093852,0.4994,2992.0,2991.9,3.82589608]
[1764480094439,0.4692,2992.3,2991.9,3.82589608]
[1764480094908,0.4692,2992.3,2991.9,0.48355274]
[1764480095827,0.4692,2992.3,2991.9,3.82590921]
[1764480098540,0.4692,2992.3,2991.9,4.30160921]
[1764480099036,0.4692,2992.3,2991.9,3.82590921]
[1764480100641,0.4692,2992.3,2991.9,4.30160921]
[1764480101642,0.4692,2992.3,2991.9,3.82590921]
[1764480102044,0.002,2992.4,2992.2,0.4551]
[1764480102216,0.002,2992.4,2992.3,0.4885191]
[1764480102410,0.002,2992.4,2992.3,0.0334191]
[1764480102630,0.5014,2992.4,2992.1,0.03342134]
[1764480103034,0.002,2992.4,2992.1,0.50912134]
[1764480104815,0.002,2992.4,2992.1,0.70492134]
[1764480105641,0.002,2992.4,2992.1,0.70492134]
[1764480105843,0.002,2992.4,2992.3,0.4551]
[1764480106216,0.002,2992.4,2992.3,0.4885191]
[1764480106416,0.002,2992.4,2992.3,0.9642191]
[1764480107343,0.5014,2992.4,2992.3,0.0334191]
[1764480107516,0.9706,2992.4,2991.9,3.34325525]
[1764480107715,0.9706,2992.4,2991.9,4.55650737]
[1764480107938,0.9706,2992.4,2991.9,4.08080737]
[1764480108147,0.9706,2992.4,2992.0,0.4757]
[1764480108917,0.4692,2992.3,2991.9,4.08080737]
[1764480112219,0.4692,2992.3,2991.9,4.54930737]
[1764480113870,0.002,2992.4,2992.0,0.50192245]
[1764480114726,0.002,2992.4,2992.3,0.4607]
[1764480115052,0.002,2992.4,2992.1,0.6535]
[1764480115424,0.002,2992.4,2992.3,0.4607]
[1764480115840,0.002,2992.4,2992.3,0.9292]
[1764480116542,0.002,2992.4,2992.3,4.2711109]
[1764480116741,0.002,2992.4,2992.3,5.05092402]
[1764480120263,0.002,2992.4,2992.3,5.08434312]
[1764480120941,0.002,2992.4,2992.3,5.05092402]
[1764480121262,0.4792,2992.4,2992.0,6.81830608]
[1764480121468,0.4792,2992.4,2992.1,0.4685]
[1764480121638,0.002,2992.4,2992.1,0.4685]
[1764480121835,0.002,2992.4,2992.1,0.6535]
[1764480122160,0.002,2992.4,2992.3,0.4607]
[1764480122545,0.002,2992.4,2992.3,3.8026109]
[1764480122747,0.002,2992.4,2992.3,4.2711109]
[1764480123366,0.002,2992.4,2992.3,3.8026109]
[1764480133286,0.002,2992.4,2992.3,0.4607]
[1764480133446,0.002,2992.4,2992.2,3.34198515]
[1764480133783,0.9362,2992.3,2992.2,3.34198515]
[1764480133984,0.002,2992.4,2992.2,3.34198515]
[1764480135721,0.4772,2992.3,2991.9,0.001]
[1764480135878,0.42818876,2992.3,2991.9,0.001]
[1764480136078,0.459,2992.2,2991.9,3.3433486]
[1764480136410,0.459,2992.2,2992.0,0.03342245]
[1764480136615,0.459,2992.2,2991.9,3.3433486]
[1764480136912,0.002,2992.4,2991.9,3.3433486]
[1764480137117,0.461,2992.4,2992.0,0.03342245]
[1764480138226,0.002,2992.4,2992.0,0.50192245]
[1764480141521,0.4991,2992.4,2991.9,0.001]
[1764480141823,0.4991,2992.4,2991.9,3.82920425]
[1764480141997,0.4991,2992.4,2991.9,4.23352468]
[1764480142625,0.4991,2992.4,2992.0,0.001]
[1764480142821,0.002,2992.4,2992.0,0.4982]
[1764480143122,0.002,2992.4,2992.1,0.03342134]
[1764480143322,0.002,2992.4,2992.0,0.001]
[1764480143514,0.4934,2992.1,2992.0,0.001]
[1764480146053,0.4585,2992.3,2992.0,0.4782]
[1764480146213,0.002,2992.4,2992.1,0.03342134]
[1764480146417,0.4605,2992.4,2992.1,0.03342134]
[1764480147035,0.4934,2992.2,2992.0,0.001]
[1764480147327,3.8023066,2992.4,2992.0,0.001]
[1764480147328,0.0559,2992.1,2992.0,0.001]
[1764480147719,0.5144,2992.1,2992.0,0.001]
[1764480149349,3.85653428,2992.1,2992.0,0.001]
[1764480149801,4.57638998,2992.1,2992.0,0.001]
[1764480153329,1.2342557,2992.1,2992.0,0.001]
[1764480153633,4.57638998,2992.1,2992.0,0.001]
[1764480157453,5.30198409,2992.1,2992.0,0.001]
[1764480158109,5.63766454,2992.1,2992.0,0.001]
[1764480159037,5.67103139,2992.1,2992.0,0.001]
[1764480159642,5.63766454,2992.1,2992.0,0.001]
[1764480159940,5.77022167,2992.1,2992.0,0.001]
[1764480160947,5.77222167,2992.1,2992.0,0.001]
[1764480165449,5.43654122,2992.1,2992.0,0.001]
[1764480165649,5.77222167,2992.1,2992.0,0.001]
[1764480171060,5.33735094,2992.1,2992.0,0.001]
[1764480173242,5.36325094,2992.1,2992.0,0.001]
[1764480179169,9.36673877,2992.1,2992.0,0.001]
[1764480179394,1.56596884,2992.0,2991.9,0.001]
[1764480179565,19.42463229,2991.9,2991.8,0.001]
[1764480179730,12.5767888,2991.9,2991.8,0.001]
[1764480179930,11.53507842,2991.9,2991.8,0.001]
[1764480180139,9.31448542,2991.9,2991.8,0.001]
[1764480180344,11.487395,2991.9,2991.8,0.001]
[1764480180663,11.62138869,2991.9,2991.8,0.001]
[1764480180842,11.21683318,2991.9,2991.8,0.001]
[1764480181228,11.42883318,2991.9,2991.8,0.001]
[1764480181893,11.21683318,2991.9,2991.8,0.001]
[1764480182083,11.42883318,2991.9,2991.8,0.001]
[1764480182382,10.73243318,2991.9,2991.8,0.001]
[1764480182672,11.3296429,2991.9,2991.8,0.001]
[1764480183089,7.73165907,2991.9,2991.8,0.001]
[1764480183384,10.99396245,2991.9,2991.8,0.001]
[1764480183583,7.73165907,2991.9,2991.8,0.001]
[1764480184071,3.73125138,2991.9,2991.8,0.001]
[1764480184258,3.64772454,2991.9,2991.8,0.001]
[1764480187894,4.37331865,2991.9,2991.8,0.001]
[1764480188953,4.10131865,2991.9,2991.8,0.466]
[1764480189159,0.75896096,2991.9,2991.8,0.9386]
[1764480189358,4.31331865,2991.9,2991.8,0.9386]
[1764480190895,4.2799518,2991.9,2991.8,0.9386]
[1764480192188,0.72559411,2991.9,2991.8,0.9386]
[1764480192684,4.0679518,2991.9,2991.8,0.9386]
[1764480194900,4.0699518,2991.9,2991.8,0.9386]
[1764480195906,4.7523518,2991.9,2991.8,0.001]
[1764480196111,5.2367518,2991.9,2991.8,0.001]
[1764480196305,5.27011865,2991.9,2991.8,0.001]
[1764480196604,4.59081865,2991.9,2991.8,0.001]
[1764480197273,4.10331865,2991.9,2991.8,0.466]
[1764480197480,4.31531865,2991.9,2991.8,0.9386]
[1764480198683,0.002,2991.9,2991.8,0.9386]
[1764480199989,3.34435769,2991.9,2991.8,0.9386]
[1764480201009,3.34435769,2991.9,2991.8,0.466]
[1764480201505,3.37772454,2991.9,2991.8,0.466]
[1764480203235,3.84982454,2991.9,2991.8,0.001]
[1764480203527,4.30232454,2991.9,2991.8,0.001]
[1764480203894,3.84982454,2991.9,2991.8,0.001]
[1764480204420,3.37772454,2991.9,2991.8,0.4774]
[1764480205425,3.37772454,2991.9,2991.8,0.9607]
[1764480205725,3.37772454,2991.9,2991.8,0.4774]
[1764480207114,3.37772454,2991.9,2991.8,0.9607]
[1764480207726,3.37772454,2991.9,2991.8,0.4774]
[1764480211954,0.03536685,2991.9,2991.8,0.4774]
[1764480212142,0.03536685,2991.9,2991.8,0.9607]
[1764480212754,0.214,2991.9,2991.8,0.9607]
[1764480213049,0.002,2991.9,2991.8,0.4774]
[1764480213241,0.002,2991.9,2991.8,0.9607]
[1764480213431,0.002,2991.9,2991.8,1.3945812]
[1764480213649,0.002,2991.9,2991.8,0.9607]
[1764480216820,0.002,2991.9,2991.8,0.001]
[1764480217034,0.24736685,2991.9,2991.8,0.001]
[1764480217568,0.24736685,2991.9,2991.8,0.4774]
[1764480218250,0.214,2991.9,2991.8,0.9607]
[1764480219466,3.55635769,2991.9,2991.8,0.4774]
[1764480219843,3.58972454,2991.9,2991.8,0.4774]
[1764480220372,3.37772454,2991.9,2991.8,0.4774]
[1764480220572,3.37772454,2991.9,2991.8,0.001]
[1764480220573,3.84982454,2991.9,2991.8,0.001]
[1764480221179,4.38622454,2991.9,2991.8,0.001]
[1764480221975,4.30232454,2991.9,2991.8,0.001]
[1764480222170,3.84982454,2991.9,2991.8,0.001]
[1764480222377,5.7685257,2991.9,2991.8,0.001]
[1764480222670,10.83017013,2991.9,2991.8,0.001]
[1764480222863,10.79680328,2991.9,2991.8,0.001]
[1764480223475,10.37588519,2991.9,2991.8,0.001]
[1764480224574,9.83734945,2991.9,2991.8,0.001]
[1764480226277,12.10781345,2991.9,2991.8,0.001]
[1764480226476,9.83734945,2991.9,2991.8,0.001]
[1764480227550,12.45284245,2991.9,2991.8,0.001]
[1764480227987,9.83734945,2991.9,2991.8,0.001]
[1764480228186,6.17002958,2991.9,2991.8,0.001]
[1764480228482,6.41539643,2991.9,2991.8,0.001]
[1764480229683,6.82090043,2991.9,2991.8,0.001]
[1764480229984,6.78753358,2991.9,2991.8,0.001]
[1764480232782,13.14753358,2991.9,2991.8,0.001]
[1764480241924,14.03839567,2991.9,2991.8,0.001]
[1764480243306,13.14753358,2991.9,2991.8,0.001]
[1764480251779,12.69503358,2991.9,2991.8,0.001]
[1764480252073,13.15863358,2991.9,2991.8,0.001]
[1764480252772,12.22293358,2991.9,2991.8,0.4995]
[1764480253072,12.67463358,2991.9,2991.8,0.001]
[1764480254153,13.13823358,2991.9,2991.8,0.001]
[1764480254783,12.46263358,2991.9,2991.8,0.001]
[1764480255074,12.22293358,2991.9,2991.8,0.001]
[1764480255447,12.67463358,2991.9,2991.8,0.001]
[1764480255773,13.13823358,2991.9,2991.8,0.001]
[1764480257049,12.92623358,2991.9,2991.8,0.001]
[1764480257278,13.13823358,2991.9,2991.8,0.001]
[1764480258883,12.67463358,2991.9,2991.8,0.001]
[1764480259051,12.46263358,2991.9,2991.8,0.001]
[1764480259251,12.80255313,2991.9,2991.8,0.001]
[1764480259450,13.13823358,2991.9,2991.8,0.001]
[1764480267392,12.22293358,2991.9,2991.8,0.4884]
[1764480268678,9.70435769,2991.9,2991.8,0.9401]
[1764480268875,10.35122842,2991.9,2991.8,0.4884]
[1764480269159,11.93782653,2991.9,2991.8,0.001]
[1764480269589,13.51329378,2991.9,2991.8,0.001]
[1764480269802,13.98589378,2991.9,2991.8,0.001]
[1764480270717,13.51329378,2991.9,2991.8,0.001]
[1764480270915,17.33840965,2991.9,2991.8,0.001]
[1764480271116,18.22927174,2991.9,2991.8,0.001]
[1764480272095,26.52110374,2991.9,2991.8,0.001]
[1764480272993,18.61536136,2991.8,2991.7,0.001]
[1764480273194,28.34168296,2991.8,2991.7,0.001]
[1764480273399,31.68415237,2991.8,2991.7,0.001]
[1764480274216,32.03023637,2991.8,2991.7,0.001]
[1764480275094,32.02988937,2991.8,2991.7,0.001]
[1764480276331,31.42695037,2991.8,2991.7,0.001]
[1764480277134,31.94445037,2991.8,2991.7,0.001]
[1764480278234,33.10429637,2991.8,2991.7,0.001]
[1764480278918,33.23829949,2991.8,2991.7,0.001]
[1764480279240,15.94923749,2991.8,2991.7,0.001]
[1764480279416,33.40129949,2991.8,2991.7,0.001]
[1764480279843,33.40329949,2991.8,2991.7,0.001]
[1764480282434,33.40330149,2991.8,2991.7,0.001]
[1764480282637,39.93339741,2991.8,2991.7,0.001]
[1764480283342,38.25504841,2991.8,2991.7,0.001]
[1764480284331,4.8310168,2991.3,2990.7,0.4517]
[1764480284534,5.26268365,2991.3,2990.8,0.4517]
[1764480284746,5.26268365,2991.3,2989.6,6.60991538]
[1764480284950,5.71438365,2991.3,2990.9,0.4517]
[1764480285340,8.87111176,2991.3,2991.2,0.4884]
[1764480285542,8.83774491,2991.3,2991.2,0.4884]
[1764480285744,10.0558114,2991.3,2991.2,0.4884]